bitfinex/quotes_ETHUSD_20240714
["timestamp","ask_amount","ask_price","bid_price","bid_amount"]
[1720976767213,1.70661577,3203.3,3203.1,0.787]
[1720976767423,1.70661577,3203.3,3203.0,4.99518]
[1720976768409,0.07003385,3203.3,3203.1,2.49757]
[1720976769829,1.63644751,3203.4,3203.1,2.49757]
[1720976770001,0.07000907,3203.2,3203.1,2.49757]
[1720976770206,1.63644751,3203.3,3203.1,2.49757]
[1720976770418,2.49704,3203.8,3203.1,2.49757]
[1720976770419,1.63644751,3203.4,3203.1,2.49757]
[1720976770622,0.0699916,3203.2,3203.1,2.49757]
[1720976770917,1.63644751,3203.4,3203.2,2.49748]
[1720976771140,0.07003184,3203.3,3202.8,9.7778]
[1720976771340,1.63668612,3203.2,3202.9,3.0]
[1720976771651,0.07003184,3203.3,3202.9,3.0]
[1720976771804,0.06995136,3203.1,3202.9,3.0]
[1720976772020,1.63656228,3203.3,3202.9,3.0]
[1720976772226,0.06991111,3203.0,3202.9,3.0]
[1720976772544,1.63656228,3203.2,3202.9,3.0]
[1720976772868,0.06991111,3203.0,3202.8,9.7778]
[1720976773080,1.63662108,3203.2,3202.8,9.7778]
[1720976773224,0.06987087,3202.9,3202.8,9.7778]
[1720976773423,2.2858,3203.4,3202.8,5.4978]
[1720976773654,0.06987087,3202.9,3202.8,5.4978]
[1720976774127,1.63677668,3203.2,3202.8,5.4978]
[1720976774365,0.06995136,3203.1,3202.8,5.4978]
[1720976774565,0.06995136,3203.1,3202.8,2.4978]
[1720976774867,0.06995136,3203.1,3202.9,2.49767]
[1720976776140,0.06995136,3203.1,3203.0,4.9953]
[1720976776357,0.06995136,3203.1,3203.0,7.9953]
[1720976776760,4.24999667,3203.7,3203.3,2.49736]
[1720976776761,1.63683056,3203.5,3203.3,2.49736]
[1720976777283,0.07001126,3203.4,3203.3,2.49736]
[1720976778134,1.70684182,3203.4,3203.3,2.49736]
[1720976778443,0.07001126,3203.4,3203.3,2.49736]
[1720976779045,1.70684182,3203.4,3203.3,2.49736]
[1720976779768,0.07001126,3203.4,3203.3,2.49736]
[1720976779971,1.70730511,3203.4,3203.3,2.49736]
[1720976780149,1.63729385,3203.4,3203.3,2.49736]
[1720976780473,1.70730511,3203.4,3203.3,2.49736]
[1720976780831,0.07001126,3203.4,3203.3,11.139265]
[1720976781252,1.63729385,3203.7,3203.6,4.99438]
[1720976781436,1.63729385,3203.8,3203.7,4.99422]
[1720976781831,1.63729385,3203.8,3203.7,7.99422]
[1720976782054,1.63729385,3203.8,3203.7,8.793642]
[1720976782253,1.96475263,3204.2,3204.0,2.4968]
[1720976782458,1.96475263,3204.2,3204.1,2.4968]
[1720976783064,2.2858,3204.8,3204.4,2.49656]
[1720976783261,1.96516362,3204.6,3204.4,2.49656]
[1720976783594,2.51438,3204.8,3204.4,2.49656]
[1720976783595,1.96516362,3204.7,3204.4,2.49656]
[1720976784508,1.96516362,3204.7,3204.2,2.49669]
[1720976784509,1.96516362,3204.6,3204.3,2.49663]
[1720976784811,0.06371518,3204.5,3204.3,2.49663]
[1720976787409,1.63653846,3204.4,3204.3,2.49663]
[1720976787815,1.70025086,3204.4,3204.3,2.49663]
[1720976789563,1.69972489,3204.4,3204.3,2.49663]
[1720976789850,1.69974594,3204.4,3204.3,2.49663]
[1720976790402,1.69974594,3204.4,3204.1,5.49679]
[1720976790707,1.69957791,3204.4,3204.3,2.49664]
[1720976793229,1.69922284,3204.4,3204.3,2.49664]
[1720976794528,0.0637124,3204.4,3204.3,2.49664]
[1720976794832,0.0637124,3204.4,3204.3,4.99328]
[1720976796219,0.0637124,3204.4,3204.3,4.91528455]
[1720976796860,1.63507005,3204.5,3204.4,2.49656]
[1720976797480,1.63507005,3204.6,3204.5,2.49648]
[1720976798166,1.63507005,3204.7,3204.5,2.49648]
[1720976798373,1.63507005,3204.7,3204.6,2.49641]
[1720976798567,1.63507005,3204.8,3204.6,2.49641]
[1720976798827,1.63507005,3204.8,3204.7,2.49633]
[1720976799824,0.32674447,3205.0,3204.7,2.49633]
[1720976800096,1.63432703,3204.8,3204.7,2.49633]
[1720976800268,0.32674447,3205.0,3204.7,2.49633]
[1720976800473,1.6342636,3204.8,3204.7,2.49633]
[1720976800906,1.69825697,3204.8,3204.7,2.49633]
[1720976802504,1.69825697,3204.8,3204.5,2.49648]
[1720976802699,4.15435697,3204.8,3204.6,2.49639]
[1720976802904,4.15391488,3204.8,3204.6,2.49639]
[1720976803203,4.15391488,3204.8,3204.7,2.49633]
[1720976805214,2.52009337,3204.8,3204.7,2.49633]
[1720976806498,0.06399337,3204.8,3204.7,2.49633]
[1720976807490,0.06399337,3204.8,3204.7,4.99266]
[1720976807695,0.06399337,3204.8,3204.7,5.77966]
[1720976807880,0.32674447,3205.0,3204.9,2.49617]
[1720976808215,0.3909118,3205.0,3204.9,2.49617]
[1720976809215,2.0242199,3205.0,3204.9,2.49617]
[1720976810021,2.02419672,3205.0,3204.9,2.49617]
[1720976810396,2.02424832,3205.0,3204.9,2.49617]
[1720976811199,2.02424832,3205.0,3204.7,2.49633]
[1720976811394,2.02424832,3205.0,3204.7,4.9926]
[1720976811720,2.02424832,3205.0,3204.7,2.49627]
[1720976812388,2.3661,3204.9,3204.5,2.49646]
[1720976812583,4.43847135,3204.9,3204.3,2.4966]
[1720976812789,1.63333652,3204.7,3204.3,2.4966]
[1720976813113,0.05979175,3204.6,3204.3,2.4966]
[1720976814418,1.69339977,3204.6,3204.3,2.4966]
[1720976816620,0.05979175,3204.6,3204.3,2.4966]
[1720976816823,1.69425043,3204.6,3204.3,2.4966]
[1720976817034,1.63445868,3204.6,3204.3,2.4966]
[1720976817254,0.05975155,3204.5,3204.3,2.4966]
[1720976818747,1.69421023,3204.5,3204.3,2.4966]
[1720976819919,0.05975155,3204.5,3204.4,2.49656]
[1720976820115,1.63567822,3204.5,3204.4,2.49656]
[1720976820357,2.3661,3204.9,3204.4,2.49656]
[1720976820520,1.63566009,3204.5,3204.4,2.49656]
[1720976820847,1.6950983,3204.5,3204.4,2.49656]
[1720976821653,0.05943821,3204.5,3204.4,2.49656]
[1720976822054,1.96279211,3204.7,3204.4,2.49656]
[1720976822572,0.05943515,3204.6,3204.4,2.49656]
[1720976823421,2.02358526,3204.6,3204.4,2.49656]
[1720976825445,1.96415011,3204.5,3204.4,2.49656]
[1720976825757,0.05939611,3204.5,3204.4,2.49656]
[1720976825940,1.96658933,3204.5,3204.4,2.49656]
[1720976826258,2.02598544,3204.5,3204.4,2.49656]
[1720976826552,0.05939611,3204.5,3204.4,2.49656]
[1720976826745,2.29435422,3204.7,3204.4,2.49656]
[1720976827054,0.05943632,3204.6,3204.4,2.49656]
[1720976829149,0.05943632,3204.6,3204.5,2.49648]
[1720976830333,0.05943632,3204.6,3204.5,8.23816]
[1720976830654,2.29654523,3204.8,3204.7,2.49633]
[1720976831684,0.32674447,3205.0,3204.8,2.49625]
[1720976834370,0.05955807,3204.9,3204.8,2.49625]
[1720976843098,0.05955807,3204.9,3204.5,2.49645]
[1720976843305,2.407,3204.8,3204.5,2.49645]
[1720976843488,2.29688267,3204.7,3204.4,2.49654]
[1720976843797,2.35592274,3204.7,3204.4,2.49654]
[1720976843999,2.29688267,3204.6,3204.4,2.49654]
[1720976844379,0.05895966,3204.5,3204.4,2.49654]
[1720976844579,2.02769012,3204.5,3204.4,11.935211]
[1720976844777,0.05895966,3204.5,3204.4,8.935211]
[1720976845003,1.64043286,3204.5,3204.4,11.935211]
[1720976845169,1.69884756,3204.5,3204.4,11.935211]
[1720976845384,0.0584147,3204.5,3204.4,11.935211]
[1720976845596,1.96873046,3204.7,3204.6,4.99282]
[1720976845799,2.0272396,3204.7,3204.6,4.99282]
[1720976845992,2.0272396,3204.7,3204.6,5.38160961]
[1720976845993,2.02693186,3204.7,3204.6,5.38160961]
[1720976846190,2.02693375,3204.7,3204.6,2.88519961]
[1720976846581,2.02693375,3204.7,3204.6,2.49641]
[1720976847070,0.05850914,3204.7,3204.6,2.49641]
[1720976847275,2.02689694,3204.7,3204.6,2.49641]
[1720976847577,0.05852668,3204.7,3204.6,2.49641]
[1720976847889,2.29649538,3204.9,3204.6,2.49641]
[1720976848089,0.05852668,3204.7,3204.6,2.49641]
[1720976848275,2.29649538,3204.9,3204.6,2.49641]
[1720976848475,0.05852668,3204.7,3204.6,2.49641]
[1720976848692,2.29649538,3204.9,3204.6,2.49641]
[1720976848894,0.05852668,3204.7,3204.6,2.49641]
[1720976849399,2.29649538,3204.9,3204.6,2.49641]
[1720976849604,0.05865249,3204.8,3204.6,2.49641]
[1720976856386,0.05865249,3204.8,3204.7,2.49633]
[1720976857017,0.05865249,3204.8,3204.7,4.78123]
[1720976857977,0.05865249,3204.8,3204.7,8.084024]
[1720976858183,1.69856129,3204.8,3204.7,10.580354]
[1720976858393,0.05865249,3204.8,3204.7,13.580354]
[1720976859021,1.6399088,3205.2,3205.1,2.2849]
[1720976859328,1.6399088,3205.3,3205.2,4.99188]
[1720976859530,1.96645093,3205.7,3205.6,2.49563]
[1720976859830,1.96645093,3205.8,3205.7,2.49555]
[1720976860131,1.96645093,3206.0,3205.8,2.49546]
[1720976860479,1.96645093,3205.9,3205.8,2.49546]
[1720976860672,7.98358873,3206.5,3205.8,2.49546]
[1720976860673,1.96645093,3206.0,3205.8,2.49546]
[1720976861122,1.96645093,3206.1,3205.8,2.49546]
[1720976861277,1.96645093,3206.0,3205.8,2.49546]
[1720976861884,0.05474375,3205.9,3205.8,2.49546]
[1720976862080,0.05474375,3205.9,3205.4,3.28275]
[1720976862282,1.63617938,3205.5,3204.4,25.2949]
[1720976862519,2.4518,3205.1,3204.6,7.28]
[1720976862727,1.63664409,3204.7,3204.5,2.49648]
[1720976862923,2.2090811,3205.0,3204.4,3.07]
[1720976862924,1.63664409,3204.6,3204.4,3.07]
[1720976863123,2.01871695,3204.6,3204.4,3.07]
[1720976864372,0.05481585,3204.6,3204.4,3.07]
[1720976865651,1.63682874,3204.5,3204.4,5.56649]
[1720976865823,0.05481585,3204.6,3204.5,2.49648]
[1720976866023,1.96418982,3204.8,3204.5,2.49648]
[1720976866224,0.05459658,3204.7,3204.5,2.49648]
[1720976866663,1.96424877,3204.8,3204.5,2.49648]
[1720976866824,0.05445998,3204.6,3204.5,2.49648]
[1720976867023,1.96424877,3204.8,3204.5,2.49648]
[1720976867355,0.05450019,3204.7,3204.5,2.49648]
[1720976867652,1.96424877,3204.8,3204.5,2.49648]
[1720976868180,0.05450019,3204.7,3204.5,2.49648]
[1720976868462,1.96424877,3204.8,3204.5,2.49648]
[1720976868694,0.05445998,3204.6,3204.5,2.49648]
[1720976868875,1.96428895,3204.8,3204.5,2.49648]
[1720976869184,1.96428895,3204.7,3204.4,3.07]
[1720976869365,1.96428895,3204.7,3204.3,2.49661]
[1720976869366,0.05467407,3204.6,3204.3,2.49661]
[1720976869567,1.6369452,3204.4,3204.3,2.49661]
[1720976869885,1.69153887,3204.4,3204.3,2.49661]
[1720976870184,0.05459367,3204.4,3204.3,2.49661]
[1720976871458,1.69153887,3204.4,3204.3,2.49661]
[1720976871668,0.05459367,3204.4,3204.3,2.49661]
[1720976873394,1.69157616,3204.4,3204.3,2.49661]
[1720976873595,1.69157616,3204.4,3204.1,2.49673]
[1720976873806,1.63698249,3204.4,3204.1,2.49673]
[1720976874097,0.05268621,3204.3,3204.1,2.49673]
[1720976874308,0.05268621,3204.3,3204.1,4.99348]
[1720976874516,1.63698249,3204.4,3204.1,4.99348]
[1720976874814,0.05259873,3204.3,3204.2,2.49672]
[1720976875112,1.63698249,3204.4,3204.2,2.49672]
[1720976875397,0.05259873,3204.3,3204.2,2.49672]
[1720976875562,1.63698249,3204.4,3204.2,2.49672]
[1720976875761,0.05259873,3204.3,3204.2,2.49672]
[1720976876073,1.6370489,3204.3,3204.2,2.49672]
[1720976876494,1.6896077,3204.3,3204.2,2.49672]
[1720976876682,0.0525588,3204.3,3204.2,2.49672]
[1720976877007,1.6896077,3204.3,3204.2,2.49672]
[1720976878710,0.0525588,3204.3,3204.2,2.49672]
[1720976878880,1.6896077,3204.3,3204.2,2.49672]
[1720976879269,0.0525588,3204.3,3204.0,2.49682]
[1720976879476,1.68946618,3204.3,3204.0,2.49682]
[1720976879816,0.05266754,3204.2,3204.1,2.4968]
[1720976879984,1.63692363,3204.3,3204.1,2.4968]
[1720976880169,0.05266754,3204.2,3204.1,2.4968]
[1720976880370,2.4641,3204.5,3204.1,2.4968]
[1720976880612,1.63685545,3204.3,3204.1,2.4968]
[1720976880767,0.05265352,3204.2,3204.1,2.4968]
[1720976880971,1.63685545,3204.3,3204.1,2.4968]
[1720976881201,0.05265352,3204.2,3203.7,2.49707]
[1720976881381,1.63685545,3203.8,3203.6,7.28]
[1720976881615,0.05233557,3203.7,3203.2,4.99487]
[1720976881820,1.63681376,3203.6,3203.2,2.49742]
[1720976881989,0.05230065,3203.5,3203.1,7.28]
[1720976882733,0.05230065,3203.5,3203.2,2.49746]
[1720976882888,0.05230065,3203.5,3203.3,2.4974]
[1720976883284,1.63681376,3203.6,3203.3,2.4974]
[1720976883522,0.0526664,3203.4,3203.3,2.4974]
[1720976883741,1.63681376,3203.6,3203.3,2.4974]
[1720976883952,0.05264119,3203.4,3203.3,2.4974]
[1720976884111,1.63681376,3203.7,3203.4,2.49728]
[1720976885247,1.6353586,3203.7,3203.4,2.49728]
[1720976885611,1.6353586,3203.8,3203.4,2.49728]
[1720976886827,0.05268457,3203.7,3203.4,2.49728]
[1720976887028,1.6353586,3203.8,3203.4,2.49728]
[1720976887233,0.05267169,3203.7,3203.4,2.49728]
[1720976887545,1.6353586,3203.8,3203.5,2.49721]
[1720976887727,0.05258025,3203.6,3203.5,2.49721]
[1720976887929,1.6353586,3203.9,3203.6,2.49712]
[1720976888542,1.63399336,3203.9,3203.7,2.49711]
[1720976889334,1.63399336,3203.8,3203.3,2.49736]
[1720976891951,2.0431865,3203.9,3203.3,4.9947]
[1720976892160,1.63337716,3203.9,3203.3,4.9947]
[1720976892476,1.63327112,3204.0,3203.5,2.49721]
[1720976892755,1.63327112,3204.0,3203.6,2.49717]
[1720976892925,2.32538042,3204.0,3203.6,2.49717]
[1720976894054,0.6921093,3204.0,3203.6,2.49717]
[1720976894254,4.09737112,3204.1,3203.6,2.49717]
[1720976894857,4.0968846,3204.1,3203.6,4.9943]
[1720976895239,4.0968147,3204.1,3203.6,4.9943]
[1720976897355,1.95967659,3204.2,3203.9,2.4969]
[1720976897559,0.32696189,3204.2,3203.9,2.4969]
[1720976897726,0.52292955,3204.2,3203.9,2.4969]
[1720976898240,0.32696189,3204.2,3204.0,2.49686]
[1720976898568,0.32696189,3204.2,3204.1,2.4968]
[1720976898775,1.63257772,3204.5,3204.2,2.49667]
[1720976899133,1.63257772,3204.6,3204.2,2.49667]
[1720976899453,1.63257772,3204.5,3204.2,2.49667]
[1720976900351,1.63257772,3204.5,3204.3,2.49662]
[1720976901845,1.63256864,3204.5,3204.3,2.49662]
[1720976902373,1.63251185,3204.5,3204.3,2.49662]
[1720976902538,0.05206612,3204.4,3204.3,2.49662]
[1720976905751,1.68527224,3204.4,3204.3,2.49662]
[1720976905952,0.05206612,3204.4,3204.3,2.49662]
[1720976906152,1.68527224,3204.4,3204.3,2.49662]
[1720976907243,0.05206612,3204.4,3204.3,2.49662]
[1720976907554,1.95984735,3204.6,3204.3,2.49662]
[1720976907739,0.05209892,3204.4,3204.3,2.49662]
[1720976907946,1.95984735,3204.6,3204.4,2.49656]
[1720976908177,1.95984735,3204.5,3204.4,2.49656]
[1720976908671,1.96377667,3204.5,3204.4,2.49656]
[1720976909949,2.01591579,3204.5,3204.4,2.49656]
[1720976911944,0.05213912,3204.5,3204.4,2.49656]
[1720976912152,2.01610129,3204.5,3204.4,2.49656]
[1720976912349,5.4992892,3204.8,3204.4,2.49656]
[1720976912350,3.208,3204.8,3204.4,2.49656]
[1720976912551,2.01622498,3204.5,3204.4,2.49656]
[1720976913269,0.05213912,3204.5,3204.4,2.49656]
[1720976913447,2.64492694,3204.7,3204.4,2.49656]
[1720976913652,0.05217931,3204.6,3204.4,2.49656]
[1720976914053,0.05217931,3204.6,3204.2,4.99335]
[1720976914254,1.96431014,3204.4,3204.2,4.99335]
[1720976914456,0.05206693,3204.3,3204.2,4.99335]
[1720976915380,0.05206693,3204.3,3204.0,2.49683]
[1720976915568,2.01650116,3204.3,3204.0,2.49683]
[1720976915771,1.63715829,3204.1,3204.0,2.49683]
[1720976916087,1.68914482,3204.1,3204.0,2.49683]
[1720976916378,1.68914482,3204.1,3203.8,2.49699]
[1720976916379,0.05198653,3204.1,3203.8,2.49699]
[1720976916584,1.63735236,3204.0,3203.8,2.49699]
[1720976916763,1.63735236,3203.9,3203.8,2.49699]
[1720976916957,1.68925848,3203.9,3203.8,2.49699]
[1720976918556,1.68925848,3203.9,3203.6,2.49717]
[1720976918792,1.6377267,3203.8,3203.6,2.49717]
[1720976919167,0.05183622,3203.7,3203.6,2.49717]
[1720976919486,1.6377267,3203.8,3203.4,2.49728]
[1720976919692,4.1067267,3203.6,3203.2,19.94]
[1720976919880,1.63812799,3203.3,3203.2,19.94]
[1720976920065,1.96527205,3203.5,3203.2,19.94]
[1720976920253,0.05167396,3203.4,3203.2,19.94]
[1720976921285,0.57906856,3203.4,3202.8,5.56778]
[1720976921469,1.63811051,3203.1,3202.9,2.49771]
[1720976921861,0.05167396,3203.4,3202.9,2.49771]
[1720976922061,1.63813728,3203.1,3202.9,2.49771]
[1720976922462,1.6380024,3203.1,3202.9,2.49771]
[1720976922680,1.6380024,3203.0,3202.7,2.49785]
[1720976922885,1.6380024,3203.0,3202.6,7.28]
[1720976923073,2.49735,3203.4,3202.7,2.49788]
[1720976923074,1.6380024,3202.8,3202.7,2.49788]
[1720976923389,1.6380024,3202.9,3202.7,2.49788]
[1720976923777,1.6380024,3202.8,3202.7,2.49788]
[1720976924291,1.6380024,3202.9,3202.7,2.49788]
[1720976924467,0.05134176,3202.8,3202.7,2.49788]
[1720976924791,1.6380024,3202.9,3202.7,2.49788]
[1720976925094,3.28535,3203.4,3202.7,2.49788]
[1720976925295,1.63766131,3202.9,3202.7,2.49788]
[1720976927388,1.63766131,3203.0,3202.7,2.49788]
[1720976927958,0.05142476,3202.9,3202.7,2.49788]
[1720976928890,0.05142476,3202.9,3202.6,2.49791]
[1720976929060,1.68908607,3202.9,3202.6,2.49791]
[1720976929895,1.68908607,3202.9,3202.7,2.49788]
[1720976930186,0.05142476,3202.9,3202.7,2.49788]
[1720976930587,1.63766131,3203.1,3202.7,2.49788]
[1720976931194,4.76512,3203.0,3202.2,9.77824]
[1720976931358,1.63766131,3202.4,3202.2,7.28]
[1720976931566,1.63766131,3202.4,3202.1,2.49829]
[1720976931760,0.05079174,3202.3,3202.1,2.49829]
[1720976932514,1.63614795,3202.5,3201.9,2.4985]
[1720976932685,1.68625925,3202.4,3202.0,2.49843]
[1720976933189,0.0501113,3202.4,3202.0,2.49843]
[1720976934893,1.63614795,3202.6,3202.0,2.49843]
[1720976935091,1.68442891,3202.5,3202.0,2.49843]
[1720976935393,0.05010217,3202.5,3202.0,2.49843]
[1720976937762,4.13222674,3202.7,3202.1,2.49835]
[1720976937967,0.0500619,3202.4,3202.1,2.49835]
[1720976938167,5.05465323,3202.7,3202.1,2.49835]
[1720976938394,0.05002163,3202.3,3202.1,2.49835]
[1720976938600,5.05284642,3202.7,3202.1,2.49835]
[1720976938797,0.04998136,3202.2,3202.1,2.49835]
[1720976938969,4.13041993,3202.7,3202.1,2.49835]
[1720976939294,5.13146574,3202.7,3202.1,2.49835]
[1720976939499,0.05014244,3202.6,3202.1,2.49835]
[1720976941001,0.05014244,3202.6,3202.2,2.49827]
[1720976941304,1.6320278,3202.8,3202.3,2.49819]
[1720976941498,0.05106194,3202.7,3202.3,2.49819]
[1720976941808,1.95874285,3202.9,3202.3,2.49819]
[1720976942397,0.05072073,3202.8,3202.1,2.49835]
[1720976942601,0.05072073,3202.8,3202.0,2.2763]
[1720976942602,0.05072073,3202.8,3202.2,2.49823]
[1720976942899,1.68261542,3202.8,3202.2,2.49823]
[1720976943098,0.05072073,3202.8,3202.2,2.49823]
[1720976943400,0.93174568,3202.8,3202.2,2.49823]
[1720976943599,0.93174568,3202.8,3202.3,2.4982]
[1720976944195,0.05072073,3202.8,3202.3,2.4982]
[1720976945593,0.788,3202.7,3202.3,2.4982]
[1720976945905,0.04978244,3202.6,3202.3,2.4982]
[1720976946509,2.31718244,3202.6,3202.3,2.4982]
[1720976947209,2.31718244,3202.6,3202.1,2.49831]
[1720976948488,2.31718244,3202.6,3202.2,2.49827]
[1720976954197,2.80739109,3202.6,3202.2,2.49827]
[1720976955083,5.9146912,3202.6,3201.8,2.49853]
[1720976955311,8.4127212,3202.6,3201.8,2.49853]
[1720976956186,2.49804,3202.5,3201.8,2.49853]
[1720976956387,2.49804,3202.5,3201.9,2.4985]
[1720976956587,0.04865664,3202.4,3201.9,2.4985]
[1720976957574,0.04865664,3202.4,3201.9,3.80501]
[1720976958676,0.04865664,3202.4,3201.7,9.7786]
[1720976958677,2.4289,3202.3,3201.7,9.7786]
[1720976958889,0.04857609,3202.2,3201.7,9.7786]
[1720976959826,0.04857609,3202.2,3201.7,12.27721]
[1720976960042,0.04857609,3202.2,3201.8,2.49859]
[1720976960391,2.4289,3202.3,3201.8,2.49859]
[1720976960698,0.04751366,3202.2,3201.8,2.49859]
[1720976960902,2.4289,3202.3,3201.8,2.49859]
[1720976961227,0.04751366,3202.2,3201.8,2.49859]
[1720976961587,2.4289,3202.3,3201.8,2.49859]
[1720976961925,0.04751366,3202.2,3201.8,2.49859]
[1720976962140,2.4289,3202.3,3201.8,2.49859]
[1720976962434,0.04751366,3202.2,3201.8,2.49859]
[1720976962789,2.4289,3202.3,3201.8,2.49859]
[1720976963127,0.04751366,3202.2,3201.8,2.49859]
[1720976963300,4.06392326,3202.3,3201.6,2.49869]
[1720976963503,4.06392326,3202.3,3201.5,2.49878]
[1720976963504,0.04751366,3202.2,3201.7,2.49867]
[1720976964133,1.68253692,3202.2,3201.7,2.49867]
[1720976964340,4.13338326,3202.1,3201.4,7.28]
[1720976964622,1.6373654,3201.9,3201.4,7.28]
[1720976964840,1.6373654,3201.8,3201.4,7.28]
[1720976964986,2.4289,3201.7,3201.4,7.28]
[1720976965313,0.0471996,3201.6,3201.4,7.28]
[1720976965702,1.684565,3201.6,3201.4,7.28]
[1720976967643,0.0471996,3201.6,3201.4,7.28]
[1720976967953,1.68555424,3201.6,3201.4,7.28]
[1720976968513,2.4289,3201.5,3201.4,7.28]
[1720976968711,2.47584343,3201.5,3201.4,7.28]
[1720976969055,4.8860559,3201.5,3201.4,7.28]
[1720976969256,2.92003033,3201.5,3201.4,7.28]
[1720976969450,2.92003033,3201.5,3200.8,2.49931]
[1720976969451,5.41886033,3201.5,3200.8,2.49931]
[1720976969620,1.63828206,3201.3,3200.8,2.49931]
[1720976969934,0.04679268,3201.2,3200.8,2.49931]
[1720976970314,1.63828206,3201.3,3200.8,2.49931]
[1720976970518,0.04679268,3201.2,3200.8,2.49931]
[1720976970724,1.63828206,3201.3,3200.8,2.49931]
[1720976971043,0.04679268,3201.2,3200.8,2.49931]
[1720976971226,0.04679268,3201.2,3200.7,7.28]
[1720976971412,1.63801452,3201.3,3200.7,7.28]
[1720976971615,0.04675237,3201.1,3200.7,7.28]
[1720976971852,1.6848072,3201.2,3200.7,7.28]
[1720976972042,2.410077,3201.0,3200.7,7.28]
[1720976972238,2.3634,3201.0,3200.7,7.28]
[1720976972450,0.04685984,3200.9,3200.7,7.28]
[1720976972815,0.04685984,3200.9,3200.6,2.49948]
[1720976974462,0.04685984,3200.9,3200.4,2.49966]
[1720976974651,0.04685984,3200.9,3200.4,8.71643872]
[1720976975086,1.68389722,3200.9,3200.4,5.71643872]
[1720976975352,2.3634,3201.0,3200.5,3.28759]
[1720976975555,4.00043738,3201.0,3200.5,3.28759]
[1720976976333,2.3634,3201.0,3200.5,3.28759]
[1720976976532,4.00043738,3201.0,3200.5,3.28759]
[1720976976963,0.04652834,3200.9,3200.5,3.28759]
[1720976977268,0.04652834,3200.9,3200.5,2.49959]
[1720976977616,4.00000823,3201.0,3200.5,2.49959]
[1720976977822,0.04733496,3200.8,3200.5,2.49959]
[1720976978024,0.04737525,3200.9,3200.5,2.49959]
[1720976978328,4.00000823,3201.0,3200.5,2.49959]
[1720976979268,4.00000823,3201.0,3200.4,2.49966]
[1720976979419,2.3634,3201.0,3200.6,2.49951]
[1720976980246,2.3634,3201.0,3200.7,2.49944]
[1720976980633,0.04730652,3200.9,3200.7,2.49944]
[1720976981955,0.04730652,3200.9,3200.8,2.496]
[1720976982184,3.28693,3201.4,3200.8,2.496]
[1720976982185,1.63559442,3201.4,3201.1,2.49914]
[1720976982393,1.63559442,3201.5,3201.3,2.49898]
[1720976982664,1.63559442,3201.6,3201.3,2.49898]
[1720976983358,1.63559442,3201.6,3201.3,4.9979]
[1720976983871,1.63559442,3201.6,3201.3,2.49892]
[1720976984084,3.99899442,3201.5,3201.3,2.49892]
[1720976984277,4.04480241,3201.5,3201.3,2.49892]
[1720976984479,4.04432641,3201.5,3201.3,2.49892]
[1720976984803,5.34824566,3201.5,3200.9,2.49926]
[1720976984964,1.63522795,3201.3,3200.9,4.99849]
[1720976985164,0.04573521,3201.2,3200.9,4.99849]
[1720976985482,1.63522795,3201.4,3201.0,2.49921]
[1720976985683,0.04569493,3201.1,3201.0,2.49921]
[1720976985886,1.63522795,3201.4,3201.0,2.49921]
[1720976986063,0.04569493,3201.1,3201.0,2.49921]
[1720976986268,1.63522795,3201.4,3201.0,2.49921]
[1720976986872,0.04577549,3201.3,3201.0,2.49921]
[1720976987291,0.04577549,3201.3,3201.1,2.49914]
[1720976991300,0.04591248,3201.2,3201.1,2.49914]
[1720976991602,1.63527856,3201.4,3201.1,2.49914]
[1720976991787,0.04591248,3201.2,3201.1,2.49914]
[1720976991988,1.63527856,3201.4,3201.1,2.49914]
[1720976992800,0.04595276,3201.3,3201.1,2.49914]
[1720976993293,0.04595276,3201.3,3201.2,2.49906]
[1720976993508,1.63527856,3201.5,3201.2,2.49906]
[1720976993675,1.68107086,3201.4,3201.2,2.49906]
[1720976994492,0.0457923,3201.4,3201.2,2.49906]
[1720976994691,1.68150075,3201.4,3201.2,2.49906]
[1720976994893,1.68150223,3201.4,3201.2,2.49906]
[1720976996822,1.68150223,3201.4,3201.0,2.4992]
[1720976997106,4.22636015,3201.3,3201.0,2.4992]
[1720976997634,1.63634832,3201.2,3201.0,2.4992]
[1720976997900,1.63634511,3201.2,3201.0,2.4992]
[1720976999006,0.04488642,3201.1,3201.0,2.4992]
[1720976999617,0.04488642,3201.1,3200.8,2.49937]
[1720976999917,0.04488642,3201.1,3200.6,2.4995]
[1720976999918,1.68123153,3201.1,3200.6,2.4995]
[1720977000201,1.63634511,3201.0,3200.6,4.99896]
[1720977000386,1.63634511,3201.0,3200.6,2.49946]
[1720977000574,0.04484876,3200.9,3200.6,2.49946]
[1720977001095,3.2105,3200.8,3200.2,9.77978]
[1720977001405,1.63700636,3200.5,3200.2,9.77978]
[1720977001593,1.63700636,3200.5,3200.2,2.49978]
[1720977001795,0.04473137,3200.4,3200.2,2.49978]
[1720977002100,0.04473137,3200.4,3200.2,4.99955]
[1720977002616,0.04473137,3200.4,3200.3,2.49976]
[1720977006201,2.63543757,3200.4,3200.1,2.49991]
[1720977006383,5.34413322,3200.4,3199.7,9.78017]
[1720977006697,1.63791485,3200.1,3199.7,12.28034]
[1720977006900,0.04471035,3200.3,3199.7,7.28]
[1720977006901,1.63796003,3200.0,3199.7,7.28]
[1720977007107,1.63796003,3199.9,3199.7,7.28]
[1720977007316,0.04433894,3199.8,3199.7,7.28]
[1720977007505,0.04433894,3199.8,3199.5,2.50036]
[1720977007506,1.68229897,3199.8,3199.5,2.50036]
[1720977007889,1.63796003,3199.7,3199.5,2.50036]
[1720977008089,0.04402776,3199.6,3199.3,2.50048]
[1720977008284,0.04402776,3199.6,3199.1,9.78064]
[1720977008285,1.68198779,3199.6,3199.1,9.78064]
[1720977010087,2.4225,3199.5,3199.1,7.28]
[1720977010335,4.13747832,3199.3,3198.8,3.07]
[1720977010488,2.50057,3199.3,3198.5,2.50115]
[1720977010686,0.04392395,3199.2,3198.5,3.729395]
[1720977012087,0.04392395,3199.2,3198.6,2.50108]
[1720977013118,2.50047,3199.4,3198.6,2.50108]
[1720977013633,0.04233849,3199.3,3198.6,2.50108]
[1720977013932,2.4225,3199.5,3199.0,2.50078]
[1720977014089,0.04239066,3199.4,3199.0,2.50078]